bitfinex-derivatives/quotes_SOLF0:USTF0_20250606
["timestamp","ask_amount","ask_price","bid_price","bid_amount"]
[1749196168279,14.3175035,147.15,147.14,0.05130389]
[1749196168474,9.65053873,147.15,147.14,0.05130389]
[1749196168685,14.31773768,147.15,147.14,0.05130389]
[1749196168875,6.7924,147.16,147.14,0.05130389]
[1749196169284,12.36993074,147.15,147.14,0.05130389]
[1749196169479,14.49457836,147.15,147.14,0.05130389]
[1749196169782,19.15137514,147.15,147.14,0.05130389]
[1749196169984,19.15137165,147.15,147.14,0.05130389]
[1749196170184,19.1497625,147.15,147.14,0.05130389]
[1749196170377,19.14974747,147.15,147.14,0.05130389]
[1749196170580,19.14963104,147.15,147.14,0.05130389]
[1749196170781,16.29756889,147.15,147.14,0.05130389]
[1749196171081,14.49462317,147.15,147.14,0.05130389]
[1749196171386,19.14982346,147.15,147.14,0.05130389]
[1749196171684,16.29758696,147.15,147.14,0.05130389]
[1749196171884,16.29356976,147.15,147.14,0.05130389]
[1749196172085,19.14279765,147.15,147.14,0.05130389]
[1749196172385,14.4914171,147.15,147.14,0.05130389]
[1749196172585,14.49138273,147.15,147.14,0.05130389]
[1749196172880,14.4936669,147.15,147.14,0.05130389]
[1749196173182,30.09161808,147.15,147.0,39.01295904]
[1749196173382,4.85295904,147.08,147.0,39.01295904]
[1749196173688,4.8533217,147.07,147.01,8.46824568]
[1749196174091,6.841302,147.05,147.03,0.04955679]
[1749196175097,0.044002,147.05,147.03,0.04955679]
[1749196175893,4.8533217,147.04,147.03,0.04955679]
[1749196177488,4.8533217,147.04,147.03,6.84775679]
[1749196177888,0.044002,147.05,147.03,0.04955679]
[1749196178191,0.044002,147.05,147.04,6.7978]
[1749196180698,0.044002,147.05,147.03,6.84745679]
[1749196181903,0.044002,147.05,147.04,6.7978]
[1749196183605,0.044002,147.05,147.03,6.84755679]
[1749196184103,0.044002,147.05,147.03,0.04955679]
[1749196184406,0.044002,147.05,147.04,6.7978]
[1749196191509,34.16,147.11,147.08,6.7957]
[1749196191709,2.8164692,147.1,147.03,4.8533217]
[1749196191908,11.6488217,147.09,147.03,4.8533217]
[1749196192313,11.6488217,147.09,147.06,6.7966]
[1749196192607,11.69877562,147.09,147.06,6.84423464]
[1749196193808,11.69877562,147.09,147.07,6.7963]
[1749196195105,4.90327562,147.09,147.07,6.7963]
[1749196195305,4.90327562,147.09,147.08,6.7959]
[1749196195710,0.04995392,147.09,147.08,6.7959]
[1749196197713,0.04995392,147.09,147.07,6.7962]
[1749196198914,6.84545392,147.09,147.07,6.7962]
[1749196200316,0.04995392,147.09,147.07,6.7962]
[1749196200717,0.04995392,147.09,147.06,6.84423464]
[1749196200914,6.84565392,147.09,147.06,6.84423464]
[1749196201416,6.84565392,147.09,147.07,6.7964]
[1749196201808,0.04995392,147.09,147.07,6.7964]
[1749196203318,6.84545392,147.09,147.06,6.84433464]
[1749196203821,6.84545392,147.09,147.07,6.7963]
[1749196204611,0.04995392,147.09,147.07,6.7963]
[1749196205918,0.04995392,147.09,147.08,6.7959]
[1749196209617,0.04995392,147.09,147.08,11.6492217]
[1749196210019,0.04995392,147.09,147.08,45.8092217]
[1749196211032,34.16,147.14,147.13,6.7936]
[1749196211230,41.65821689,147.14,147.13,6.7936]
[1749196211526,41.65825092,147.14,147.13,6.7936]
[1749196211721,34.16,147.14,147.13,6.7936]
[1749196212122,38.81078585,147.14,147.13,6.7936]
[1749196212329,34.16,147.14,147.13,6.7936]
[1749196212826,4.90377423,147.15,147.14,6.7931]
[1749196216323,0.05045253,147.15,147.14,6.7931]
[1749196226435,5.253e-05,147.15,147.14,6.7931]
[1749196226636,5.253e-05,147.15,147.14,11.6464217]
[1749196236157,5.253e-05,147.15,147.14,6.7931]
[1749196238146,9.2924217,147.24,147.23,6.789]
[1749196238346,4.3831,147.28,147.19,34.12]
[1749196238555,13.94077374,147.28,147.2,38.9733217]
[1749196238750,7.0161217,147.28,147.21,34.12]
[1749196239153,7.0161217,147.28,147.26,6.7872]
[1749196239346,7.06526135,147.28,147.26,6.7872]
[1749196239852,0.04913965,147.28,147.27,6.7871]
[1749196240149,0.04913965,147.28,147.26,0.05199243]
[1749196240455,0.04913965,147.28,147.26,6.83939243]
[1749196240855,6.83583965,147.28,147.26,0.05199243]
[1749196241060,4.8533217,147.27,147.21,34.12]
[1749196241253,4.8533217,147.25,147.21,34.12]
[1749196241555,4.8533217,147.25,147.23,6.7887]
[1749196242055,4.90351918,147.25,147.23,0.04922475]
[1749196242458,0.05019748,147.25,147.23,0.04922475]
[1749196242758,0.05019748,147.25,147.24,6.7885]
[1749196244557,0.05019748,147.25,147.23,6.83792475]
[1749196245556,0.05019748,147.25,147.24,6.7885]
[1749196247457,4.8533217,147.3,147.23,0.04922475]
[1749196247758,4.8533217,147.28,147.22,4.8533217]
[1749196248052,11.6402217,147.28,147.22,4.8533217]
[1749196248357,11.6402217,147.28,147.24,0.0449888]
[1749196248358,0.04373169,147.26,147.24,0.0449888]
[1749196248660,0.04373169,147.26,147.25,6.788]
[1749196252353,0.04373169,147.26,147.24,6.8333888]
[1749196253159,0.04373169,147.26,147.25,6.7881]
[1749196264774,36.3143,147.31,147.29,6.7861]
[1749196265371,36.3143,147.31,147.25,38.9533217]
[1749196265573,34.12,147.31,147.25,38.9533217]
[1749196265770,0.04712321,147.29,147.27,0.05134256]
[1749196265975,0.04712321,147.29,147.28,6.7867]
[1749196266580,0.04712321,147.29,147.27,0.05134256]
[1749196266776,4.8533217,147.28,147.27,0.05134256]
[1749196267381,11.6400217,147.28,147.27,0.05134256]
[1749196268484,4.8533217,147.28,147.22,34.1]
[1749196268781,4.8533217,147.26,147.22,34.1]
[1749196269081,4.8533217,147.26,147.24,6.7883]
[1749196269282,4.8533217,147.26,147.22,34.1]
[1749196269487,0.04484609,147.25,147.24,6.7885]
[1749196269979,6.83334609,147.25,147.23,0.04822048]
[1749196270180,0.04484609,147.25,147.23,0.04822048]
[1749196270883,0.04484609,147.25,147.24,6.7885]
[1749196271183,0.04484609,147.25,147.23,0.04822048]
[1749196271577,0.04484609,147.25,147.23,6.83692048]
[1749196271980,0.04484609,147.25,147.23,0.04822048]
[1749196272278,0.04484609,147.25,147.24,6.7885]
[1749196273286,0.04484609,147.25,147.23,6.83702048]
[1749196273775,6.83294609,147.25,147.23,6.83702048]
[1749196274585,0.04484609,147.25,147.23,6.83702048]
[1749196275585,4.8533217,147.24,147.23,0.04822048]
[1749196276589,11.6418217,147.24,147.23,0.04822048]
[1749196279587,16.39194598,147.24,147.23,0.04822048]
[1749196279888,9.60339899,147.24,147.23,0.04822048]
[1749196280089,4.8533217,147.24,147.23,0.04822048]
[1749196281690,4.8533217,147.24,147.23,6.83722048]
[1749196281891,41.77554762,147.24,147.16,433.691322]
[1749196282091,12.42248779,147.23,147.21,6.7896]
[1749196282285,4.74700517,147.22,147.16,438.5446437]
[1749196282491,11.6427217,147.23,147.16,438.5446437]
[1749196282683,11.6427217,147.23,147.2,6.7901]
[1749196282879,7.56855266,147.22,147.2,6.84226857]
[1749196283082,4.8533217,147.21,147.2,0.05216857]
[1749196283583,11.6432217,147.21,147.2,0.05216857]
[1749196284182,12.40073124,147.21,147.13,44.818422]
[1749196284382,4.8533217,147.18,147.13,34.08]
[1749196284991,11.6449217,147.18,147.13,34.08]
[1749196285192,34.08,147.2,147.14,0.04975043]
[1749196285193,0.04764281,147.17,147.14,0.04975043]
[1749196285590,0.04764281,147.17,147.16,6.7918]
[1749196286491,0.04764281,147.17,147.15,6.7925]
[1749196286795,0.04764281,147.17,147.14,0.04975043]
[1749196287688,0.04764281,147.17,147.16,6.7922]
[1749196296394,0.04764281,147.17,147.14,0.04975043]
[1749196296595,4.8533217,147.15,147.14,0.04975043]
[1749196297497,4.90096451,147.17,147.14,0.04975043]
[1749196298107,4.90096451,147.17,147.15,6.7924]
[1749196298406,4.90096451,147.17,147.14,0.04975043]
[1749196298603,11.69296451,147.17,147.14,6.84265043]
[1749196298801,11.69296451,147.17,147.14,0.04975043]
[1749196299002,4.90096451,147.17,147.14,0.04975043]
[1749196299606,4.90096451,147.17,147.15,6.7924]
[1749196299806,4.90096451,147.17,147.14,0.04975043]
[1749196300603,4.90096451,147.17,147.15,6.7925]
[1749196300804,4.90096451,147.17,147.14,0.04975043]
[1749196301208,4.90096451,147.17,147.16,6.7922]
[1749196303910,0.04764281,147.17,147.16,6.7922]
[1749196315115,4.90096451,147.17,147.16,6.7922]
[1749196319312,3.14855236,147.17,147.16,6.7922]
[1749196320310,0.04764281,147.17,147.16,6.7922]
[1749196321218,3.14855236,147.17,147.16,6.7922]
[1749196322317,3.14855236,147.17,147.15,6.7925]
[1749196322518,3.10090955,147.16,147.15,6.7925]
[1749196322719,3.10090955,147.16,147.14,0.04975043]
[1749196322910,3.10090955,147.15,147.14,0.04975043]
[1749196323719,3.10090955,147.15,147.14,6.84255043]
[1749196325218,11.68560841,147.17,147.14,6.84255043]
[1749196325418,4.89360841,147.17,147.14,6.84255043]
[1749196326826,4.89360841,147.17,147.15,6.7925]
[1749196327025,4.89360841,147.17,147.14,8.48107243]
[1749196327526,4.89360841,147.17,147.15,6.7927]
[1749196327926,0.04764281,147.17,147.14,8.48107243]
[1749196328421,397.49945467,147.25,147.16,8.431322]
[1749196328629,4.71245894,147.23,147.17,8.431322]
[1749196328822,4.71281968,147.22,147.21,6.7899]
[1749196329018,7.52042658,147.22,147.21,6.7899]
[1749196329819,0.05114565,147.23,147.22,6.7895]
[1749196330127,7.55927144,147.23,147.22,6.7895]
[1749196330427,4.75144119,147.23,147.22,6.7895]
[1749196330630,7.55894036,147.23,147.22,6.7895]
[1749196330824,7.55893516,147.23,147.22,6.7895]
[1749196331029,0.05114565,147.23,147.22,6.7895]
[1749196334831,4.89711125,147.23,147.2,0.04846803]
[1749196335025,4.8459656,147.21,147.2,0.04846803]
[1749196337842,34.13114565,147.23,147.2,6.83876803]
[1749196338135,4.8459656,147.21,147.2,0.04846803]
[1749196339238,4.8459656,147.21,147.2,6.83886803]
[1749196340934,4.8459656,147.21,147.2,0.04846803]
[1749196341336,11.6358656,147.21,147.2,0.04846803]
[1749196341740,4.8459656,147.21,147.2,0.04846803]
[1749196342642,4.8459656,147.21,147.2,6.83886803]
[1749196343344,4.8459656,147.21,147.2,0.04846803]
[1749196345447,11.6358656,147.21,147.2,0.04846803]
[1749196345649,4.8459656,147.21,147.2,0.04846803]
[1749196345844,4.8459656,147.21,147.15,8.431322]
[1749196346045,4.8459656,147.18,147.14,8.431322]
[1749196346746,4.8459656,147.18,147.13,44.602622]
[1749196346943,0.04598285,147.17,147.14,0.04616295]
[1749196347846,0.04598285,147.17,147.16,6.7918]
[1749196358454,0.04598285,147.17,147.14,0.04616295]
[1749196360758,0.04598285,147.17,147.16,6.7922]
[1749196368262,0.04598285,147.17,147.15,6.7924]
[1749196369254,0.04598285,147.17,147.16,6.7922]
[1749196383171,3.14677437,147.17,147.16,6.7922]
[1749196385171,3.14685266,147.17,147.16,6.7922]
[1749196385672,8.285e-05,147.17,147.16,18.32439181]
[1749196385971,8.285e-05,147.17,147.16,52.38266613]
[1749196389273,8.285e-05,147.17,147.16,54.12603185]
[1749196390270,8.285e-05,147.17,147.16,49.283522]
[1749196411193,8.285e-05,147.17,147.16,52.38310075]
[1749196414694,8.285e-05,147.17,147.16,43.95177875]
[1749196415894,8.285e-05,147.17,147.16,52.414534]
[1749196416097,8.285e-05,147.17,147.16,43.95177875]
[1749196417198,8.285e-05,147.17,147.16,52.41594684]
[1749196417397,8.285e-05,147.17,147.16,43.95177875]
[1749196421408,8.285e-05,147.17,147.16,56.56154788]
[1749196421908,8.285e-05,147.17,147.16,43.95177875]
[1749196423204,8.285e-05,147.17,147.16,56.56154788]
[1749196423709,8.285e-05,147.17,147.16,43.95177875]
[1749196423909,8.285e-05,147.17,147.16,56.56154788]
[1749196424111,8.285e-05,147.17,147.16,43.95177875]
[1749196424609,8.285e-05,147.17,147.16,56.56154788]
[1749196426009,8.285e-05,147.17,147.16,43.95177875]
[1749196426210,8.285e-05,147.17,147.16,56.56154788]
[1749196435117,8.285e-05,147.17,147.16,43.95177875]
[1749196435517,8.285e-05,147.17,147.16,56.67361178]
[1749196436017,8.285e-05,147.17,147.16,43.95177875]
[1749196439224,8.285e-05,147.17,147.16,40.8522]
[1749196439422,8.285e-05,147.17,147.16,56.67196577]
[1749196439723,8.285e-05,147.17,147.16,56.6721336]
[1749196439923,8.285e-05,147.17,147.16,56.672134]
[1749196440118,8.285e-05,147.17,147.16,40.8522]
[1749196440318,8.285e-05,147.17,147.16,56.67237957]
[1749196447035,8.285e-05,147.17,147.16,53.57280082]
[1749196447231,8.285e-05,147.17,147.16,56.67237957]
[1749196448334,8.285e-05,147.17,147.16,53.57280082]
[1749196448535,8.285e-05,147.17,147.16,56.67237957]
[1749196453134,3.0996616,147.17,147.15,19.51310082]
[1749196453335,3.10230716,147.17,147.14,8.52849667]
[1749196453535,7.8256794,147.16,147.14,0.04616295]
[1749196453836,3.1023233,147.17,147.15,6.7924]
[1749196454142,2.93074383,147.16,147.15,6.7924]
[1749196454436,3.1023233,147.17,147.15,6.7924]
[1749196454737,10.75646221,147.16,147.15,6.7924]
[1749196455437,3.10224045,147.16,147.15,6.7924]
[1749196455637,10.75013462,147.16,147.15,6.7924]
[1749196455837,10.74985222,147.16,147.15,6.7924]
[1749196456035,10.74985771,147.16,147.15,6.7924]
[1749196456336,10.74973546,147.16,147.15,6.7924]
[1749196456538,3.10224045,147.16,147.15,6.7924]
[1749196456943,3.10224045,147.16,147.14,6.83926295]
[1749196457139,3.10224045,147.15,147.14,6.83926295]
[1749196461741,7.56484045,147.16,147.15,6.7927]
[1749196466343,4.4626,147.16,147.15,6.7927]
[1749196466650,7.56484045,147.16,147.15,6.7927]
[1749196479755,3.1023233,147.17,147.16,6.7922]
[1749196481753,8.285e-05,147.17,147.16,6.7922]
[1749196482955,8.285e-05,147.17,147.16,9.89444045]
[1749196490660,8.285e-05,147.17,147.16,18.37677417]
[1749196494459,3.1023233,147.17,147.16,6.7922]
[1749196495463,8.285e-05,147.17,147.16,6.7922]
[1749196498462,8.285e-05,147.17,147.16,9.89444045]
[1749196500261,8.285e-05,147.17,147.16,6.7922]
[1749196500458,8.285e-05,147.17,147.16,9.89444045]
[1749196504867,8.285e-05,147.17,147.16,6.7922]
[1749196505066,8.285e-05,147.17,147.16,9.89444045]
[1749196509467,8.285e-05,147.17,147.16,18.37677417]
[1749196510167,33.94,147.27,147.16,11.55206304]
[1749196510366,7.69001263,147.24,147.21,3.10224045]
[1749196510567,3.10224045,147.24,147.23,6.7887]
[1749196510759,10.79054949,147.24,147.23,6.7887]
[1749196511168,10.79308321,147.24,147.23,6.7887]
[1749196511369,6.05127615,147.24,147.23,6.7887]
[1749196511670,10.79308879,147.24,147.23,6.7887]
[1749196512268,6.05127615,147.24,147.23,6.7887]
[1749196512662,6.05127615,147.24,147.22,6.84131473]
[1749196512865,3.10224045,147.24,147.22,6.84131473]
[1749196515562,3.10224045,147.24,147.23,6.789]
[1749196515765,7.86276024,147.24,147.23,6.789]
[1749196515967,10.82002425,147.24,147.23,6.789]
[1749196516167,10.82003289,147.24,147.23,6.789]
[1749196516866,10.82990863,147.24,147.23,6.789]
[1749196517473,10.82977651,147.24,147.23,6.789]
[1749196517971,10.82962152,147.24,147.23,6.789]
[1749196518372,2.95718356,147.24,147.23,6.789]
[1749196518668,0.04604225,147.25,147.24,6.7885]
[1749196518973,7.7771912,147.25,147.24,6.7885]
[1749196519172,7.79353926,147.25,147.24,6.7885]
[1749196519369,7.79356772,147.25,147.24,6.7885]
[1749196519769,7.79356772,147.25,147.23,6.7888]
[1749196520064,0.04604225,147.25,147.23,6.7888]
[1749196521266,2.96937606,147.24,147.22,9.94365518]
[1749196521471,9.9363827,147.25,147.22,9.94365518]
[1749196521773,2.96933638,147.24,147.22,9.94365518]
[1749196522076,9.9363827,147.25,147.22,9.94365518]
[1749196522379,2.96874881,147.24,147.22,9.94365518]
[1749196522675,3.1482827,147.25,147.22,9.94365518]
[1749196522870,2.96821124,147.24,147.22,9.94365518]
[1749196523071,0.04604225,147.25,147.23,3.10224045]
[1749196523277,3.10224045,147.32,147.24,45.47193066]
[1749196523470,7.71717075,147.31,147.29,3.10224045]
[1749196523669,7.67404045,147.33,147.29,3.10224045]
[1749196523977,7.67404045,147.33,147.25,10.70489021]
[1749196523978,3.10224045,147.3,147.27,3.10224045]
[1749196524182,3.14747122,147.3,147.27,9.93235509]
[1749196525180,0.04523077,147.3,147.27,6.83011464]
[1749196525379,0.04523077,147.3,147.28,6.7865]
[1749196526670,0.04523077,147.3,147.29,6.7862]
[1749196527780,6.7863,147.29,147.27,0.04321464]
[1749196528081,4.83749718,147.29,147.27,0.04321464]
[1749196528482,11.62389718,147.29,147.27,0.04321464]
[1749196528885,6.7867,147.28,147.27,0.04321464]
[1749196529583,4.83749718,147.29,147.27,0.04321464]
[1749196530085,6.7867,147.28,147.27,0.04321464]
[1749196542104,11.62389718,147.29,147.27,0.04321464]
[1749196542504,4.83749718,147.29,147.27,0.04321464]
[1749196542909,6.7867,147.28,147.27,0.04321464]
[1749196543098,8.9073,147.28,147.27,0.04321464]
[1749196543907,6.7881,147.25,147.21,33.9]
[1749196544605,6.7881,147.25,147.23,6.7889]
[1749196544808,6.7881,147.25,147.18,33.9]
[1749196545002,0.04379991,147.23,147.2,0.05222832]
[1749196546806,0.04379991,147.23,147.22,6.789]
[1749196566019,0.04379991,147.23,147.22,9.88706056]
[1749196574622,3.09806056,147.27,147.26,6.7876]
[1749196574821,10.67682494,147.27,147.24,3.09806056]
[1749196575019,4.78782336,147.26,147.24,3.09806056]
[1749196575220,3.09806056,147.27,147.26,6.7876]
[1749196575420,10.68891702,147.27,147.26,6.7876]
[1749196575629,10.68891702,147.27,147.25,0.04554399]
[1749196575823,10.68891702,147.27,147.25,6.83324399]
[1749196575824,3.09806056,147.27,147.25,6.83324399]
[1749196576330,3.09806056,147.27,147.26,6.7876]
[1749196576630,10.69073766,147.27,147.25,0.04554399]
[1749196576825,4.80185765,147.26,147.25,6.83364399]
[1749196577025,4.80194982,147.26,147.25,6.83364399]
[1749196577528,3.09806056,147.27,147.25,6.83364399]
[1749196577729,4.80176789,147.26,147.25,6.83364399]
[1749196577931,4.80175165,147.26,147.25,6.83364399]
[1749196578129,4.80261214,147.26,147.25,6.83364399]
[1749196579031,4.80218987,147.26,147.25,6.83364399]
[1749196579426,3.09806056,147.27,147.25,6.83364399]
[1749196579822,4.80227779,147.26,147.25,6.83364399]
[1749196580027,4.80319312,147.26,147.25,6.83364399]
[1749196580923,3.09806056,147.27,147.25,6.83364399]
[1749196581121,4.80386336,147.26,147.25,6.83364399]
[1749196581321,3.09806056,147.27,147.25,6.83364399]
[1749196581521,3.09806056,147.27,147.26,6.7876]
[1749196581723,10.69550397,147.27,147.26,6.7876]
[1749196582229,10.69547314,147.27,147.26,6.7876]
[1749196582532,5.89165888,147.27,147.26,6.7876]
[1749196582830,10.69697867,147.27,147.26,6.7876]
[1749196583029,3.09806056,147.27,147.26,6.7876]
[1749196583229,10.69702687,147.27,147.26,6.7876]
[1749196584131,10.69727678,147.27,147.26,6.7876]
[1749196584332,7.90341107,147.27,147.26,6.7876]
[1749196584532,10.69861947,147.27,147.26,6.7876]
[1749196584739,10.69868852,147.27,147.26,6.7876]
[1749196585132,10.69875459,147.27,147.26,6.7876]
[1749196585838,10.69942029,147.27,147.26,6.7876]
[1749196586032,10.69942953,147.27,147.26,6.7876]
[1749196586334,3.09806056,147.27,147.26,6.7876]
[1749196586534,7.90531901,147.27,147.26,6.7876]
[1749196586728,10.70041194,147.27,147.26,6.7876]
[1749196587431,14.69242,147.27,147.25,6.83334399]
[1749196587636,7.60173768,147.26,147.25,6.83334399]
[1749196587935,7.60175556,147.26,147.25,6.83334399]
[1749196588137,4.80682835,147.26,147.25,6.83334399]
[1749196589540,9.88516056,147.27,147.25,6.83334399]
[1749196590134,4.80664145,147.26,147.25,6.83334399]
[1749196590740,14.38925645,147.26,147.25,0.04554399]
[1749196590947,17.48731701,147.26,147.25,0.04554399]
[1749196591240,2.79506089,147.26,147.25,37.02360455]
[1749196591541,0.04513266,147.28,147.27,6.7871]
[1749196591732,0.04513266,147.28,147.27,9.88215968]
[1749196593342,3.14019234,147.28,147.25,0.04554399]
[1749196593643,0.04513266,147.28,147.25,3.14060367]
[1749196593846,0.04513266,147.28,147.26,6.7875]
[1749196594045,0.04513266,147.28,147.25,3.14060367]
[1749196595444,0.04513266,147.28,147.26,6.7873]
[1749196598144,3.14019234,147.28,147.26,6.7873]
[1749196598751,9.92699234,147.28,147.26,6.7873]
[1749196600053,9.92699234,147.28,147.25,9.92840367]
[1749196600249,9.92699234,147.28,147.25,6.83334399]
[1749196600445,9.92699234,147.28,147.25,0.04554399]
[1749196601049,9.92699234,147.28,147.26,6.7874]
[1749196601248,6.7872,147.27,147.25,0.04554399]
[1749196601546,9.88225968,147.27,147.25,0.04554399]
[1749196601742,6.7876,147.26,147.25,0.04554399]
[1749196601943,9.88265968,147.26,147.25,0.04554399]
[1749196603856,14.59857162,147.26,147.25,0.04554399]
[1749196604353,14.59897231,147.26,147.25,0.04554399]
[1749196604543,14.59897572,147.26,147.25,0.04554399]
[1749196604750,6.789,147.23,147.19,42.30420457]
[1749196605045,9.88405968,147.23,147.19,36.97505968]
[1749196605252,9.88405968,147.23,147.21,6.7897]
[1749196605648,3.09505968,147.23,147.19,36.97505968]
[1749196605854,0.04849633,147.22,147.21,6.7899]
[1749196608853,0.04849633,147.22,147.21,9.88495968]
[1749196615760,5.27945968,147.27,147.25,6.7878]
[1749196616660,5.32256928,147.27,147.25,6.838128]
[1749196618460,12.10966928,147.27,147.25,6.838128]
[1749196619558,2.2275096,147.27,147.25,0.050328]
[1749196619762,5.32256928,147.27,147.25,0.050328]
[1749196620261,9.92546928,147.27,147.25,6.838028]
[1749196620561,0.0431096,147.27,147.25,6.838028]
[1749196620761,3.13816928,147.27,147.25,6.838028]
[1749196621461,0.0431096,147.27,147.26,6.7876]
[1749196626868,0.0431096,147.27,147.26,9.88265968]
[1749196627064,33.86,147.32,147.26,3.09505968]
[1749196627370,36.95505968,147.35,147.31,3.09505968]
[1749196627570,4.71629784,147.34,147.32,6.7847]
[1749196627871,4.7166438,147.33,147.32,6.7847]
[1749196628077,0.04286475,147.34,147.32,6.7847]
[1749196629774,6.82686475,147.34,147.31,6.83404605]
[1749196631277,0.04286475,147.34,147.32,6.7848]
[1749196633482,0.04286475,147.34,147.33,6.7844]
[1749196635581,2.277,147.41,147.34,4.83420195]
[1749196635582,36.117,147.41,147.34,4.83420195]
[1749196635784,4.72171688,147.4,147.34,4.83420195]
[1749196635977,6.7814,147.4,147.37,6.7825]
[1749196636179,36.117,147.41,147.36,4.83420195]
[1749196636580,0.05011319,147.4,147.38,6.7818]
[1749196637883,6.83131319,147.4,147.37,6.83452181]
[1749196638081,0.05011319,147.4,147.37,6.83452181]
[1749196638480,6.83131319,147.4,147.37,6.83452181]
[1749196638681,6.83131319,147.4,147.38,6.782]
[1749196639188,6.83131319,147.4,147.37,0.05222181]
[1749196639189,6.83131319,147.4,147.37,6.83462181]
[1749196639389,6.83131319,147.4,147.37,0.05222181]
[1749196640487,0.05011319,147.4,147.38,6.7818]
[1749196641080,6.83151319,147.4,147.37,6.83452181]
[1749196643586,6.83151319,147.4,147.38,6.782]
[1749196644585,0.05011319,147.4,147.37,0.05222181]
[1749196645491,0.05011319,147.4,147.37,6.83452181]
[1749196646593,6.83161319,147.4,147.37,6.83452181]
[1749196646786,0.05011319,147.4,147.37,6.83452181]
[1749196647286,6.7817,147.39,147.37,6.83452181]
[1749196649292,9.87367487,147.39,147.37,6.83452181]
[1749196650393,6.7817,147.39,147.37,6.83452181]
[1749196650893,9.92348806,147.4,147.38,6.782]
[1749196651096,9.92348806,147.4,147.37,0.05222181]
[1749196651594,9.92348806,147.4,147.37,6.83442181]
[1749196651797,9.92348806,147.4,147.37,0.05222181]
[1749196652199,9.92348806,147.4,147.38,6.782]
[1749196655294,3.14208806,147.4,147.37,0.05222181]
[1749196655500,3.09197487,147.38,147.37,0.05222181]
[1749196656795,9.87407487,147.38,147.37,0.05222181]
[1749196665606,14.60469586,147.38,147.37,0.05222181]
[1749196666106,14.61538573,147.38,147.37,0.05222181]
[1749196666305,14.61530315,147.38,147.37,0.05222181]
[1749196666604,7.83323203,147.38,147.32,40.5846]
[1749196666802,3.09197487,147.33,147.29,36.89197487]
[1749196667607,0.04780824,147.32,147.31,6.785]
[1749196685230,3.13978311,147.32,147.3,0.0436834]
[1749196685429,3.09197487,147.31,147.3,0.0436834]
[1749196686834,9.87727487,147.31,147.3,0.0436834]
[1749196687028,9.87727487,147.31,147.23,424.66]
[1749196687029,3.09197487,147.31,147.23,424.66]
[1749196687228,3.09197487,147.26,147.25,6.7878]
[1749196687729,3.09197487,147.26,147.23,33.78]
[1749196688030,3.09197487,147.25,147.24,6.7881]
[1749196689326,0.04633362,147.26,147.24,6.7881]
[1749196689529,0.04633362,147.26,147.25,6.7881]
[1749196692034,0.04633362,147.26,147.24,6.7883]
[1749196694037,6.83393362,147.26,147.24,6.7883]
[1749196695637,6.83393362,147.26,147.23,6.83982088]
[1749196695935,6.7885,147.24,147.23,0.05112088]
[1749196696135,4.83997134,147.25,147.23,0.05112088]
[1749196697138,11.62807134,147.25,147.23,6.83992088]
[1749196697328,11.62807134,147.25,147.23,0.05112088]
[1749196699837,4.83997134,147.25,147.23,6.83992088]
[1749196701832,11.62807134,147.25,147.23,6.83992088]
[1749196705342,4.83997134,147.25,147.23,6.83992088]
[1749196706339,11.62807134,147.25,147.23,6.83992088]
[1749196707634,4.83997134,147.25,147.23,6.83992088]
[1749196708135,4.83997134,147.25,147.24,6.7885]
[1749196708331,4.83997134,147.25,147.23,0.05112088]
[1749196708528,4.83997134,147.25,147.23,6.83982088]
[1749196709637,0.04633362,147.26,147.23,0.05112088]
[1749196710247,0.04633362,147.26,147.25,6.7881]
[1749196711137,3.14331617,147.26,147.25,6.7881]
[1749196730357,0.04633362,147.26,147.25,6.7881]
[1749196730557,0.04633362,147.26,147.25,9.88508255]
[1749196731761,0.04633362,147.26,147.25,6.7881]
[1749196732659,3.14331617,147.26,147.25,6.7881]
[1749196733959,3.14331617,147.26,147.24,6.7882]
[1749196734164,3.09698255,147.25,147.24,6.7882]
[1749196734663,3.09698255,147.25,147.23,6.83972088]
[1749196734863,3.09698255,147.24,147.23,6.83972088]
[1749196738061,0.04633362,147.26,147.23,6.83972088]
[1749196738263,3.09698255,147.25,147.24,6.7885]
[1749196739367,0.04633362,147.26,147.25,6.7881]
[1749196739670,3.14331617,147.26,147.25,6.7881]
[1749196750580,7.79649098,147.26,147.25,6.7881]
[1749196751175,4.70155932,147.26,147.25,9.88508255]
[1749196751476,3.09517101,147.31,147.25,3.09517101]
[1749196751776,3.09517101,147.31,147.29,6.786]
[1749196751970,3.09517101,147.3,147.29,6.786]
[1749196757988,3.09517101,147.3,147.28,6.83332842]
[1749196758484,3.09517101,147.29,147.28,6.83332842]
[1749196760689,3.09517101,147.3,147.29,6.7862]
[1749196763283,7.81518127,147.3,147.29,6.7862]
[1749196763488,3.09517101,147.3,147.29,6.7862]